bitfinex-derivatives/quotes_ETHF0:USTF0_20220108
["timestamp","ask_amount","ask_price","bid_price","bid_amount"]
[1641639752716,1.55605937,3213.7,3213.5,2.00479]
[1641639753520,1.82084737,3213.7,3213.5,2.00479]
[1641639755920,1.55605937,3213.7,3213.5,2.00479]
[1641639757222,33.02365702,3214.0,3213.5,3.50479]
[1641639757523,1.55553654,3214.6,3214.0,13.29]
[1641639757722,0.640787,3214.5,3214.0,0.9104]
[1641639758624,0.640787,3214.5,3214.4,2.00479]
[1641639761528,2.00479,3215.0,3214.4,2.00479]
[1641639761828,1.39953445,3214.9,3214.4,2.00479]
[1641639762029,1.55549299,3214.6,3214.4,2.00479]
[1641639762428,1.82028099,3214.6,3214.4,2.00479]
[1641639762829,1.55549299,3214.6,3214.4,2.00479]
[1641639765529,1.39953445,3214.9,3214.4,2.00479]
[1641639765830,1.55546396,3214.7,3214.4,2.00479]
[1641639766230,1.39953445,3214.9,3214.4,2.00479]
[1641639766431,1.55546396,3214.7,3214.4,2.00479]
[1641639766630,1.39953445,3214.9,3214.4,2.00479]
[1641639768232,1.55546396,3214.7,3214.4,2.00479]
[1641639768430,1.39953445,3214.9,3214.4,2.00479]
[1641639768832,0.75874745,3214.9,3214.4,3.50479]
[1641639769231,0.75874745,3214.9,3214.4,2.00479]
[1641639769834,0.75874745,3214.9,3214.4,16.79479]
[1641639770037,0.75874745,3215.0,3214.4,16.79479]
[1641639770236,0.75874745,3215.0,3214.6,14.79]
[1641639770733,0.75874745,3215.0,3214.9,2.00479]
[1641639770935,4.745e-05,3215.0,3214.9,16.10209]
[1641639771135,4.745e-05,3215.0,3214.9,2.81209]
[1641639771735,1.03312415,3215.3,3214.9,2.81209]
[1641639771936,1.03312415,3215.5,3214.9,2.81209]
[1641639772135,1.03312415,3215.5,3215.0,1.5]
[1641639772335,1.03312415,3215.5,3215.3,14.79]
[1641639772538,1.54964266,3216.0,3215.4,1.5]
[1641639772736,1.54964266,3216.0,3215.9,4.00958]
[1641639772936,1.54964266,3216.0,3215.9,4.96788]
[1641639773139,3.45161684,3216.9,3215.9,4.96788]
[1641639773638,1.92117168,3216.7,3215.9,4.96788]
[1641639773838,1.92117168,3216.7,3216.0,0.81488737]
[1641639773839,1.53693734,3216.4,3216.0,0.81488737]
[1641639774247,1.80172534,3216.4,3216.0,0.81488737]
[1641639774438,1.80172534,3216.4,3215.9,4.00958]
[1641639774639,1.80172534,3216.4,3216.3,2.00479]
[1641639774939,1.764788,3216.4,3215.9,2.00479]
[1641639775140,1.027088,3216.4,3215.9,2.00479]
[1641639775341,1.55487383,3216.2,3215.9,2.00479]
[1641639775742,0.264788,3216.1,3215.9,2.00479]
[1641639776546,1.55487383,3216.2,3215.9,2.00479]
[1641639776745,0.49621653,3216.1,3215.9,2.00479]
[1641639777847,0.49621653,3216.2,3215.9,2.00479]
[1641639778550,0.264788,3216.1,3215.9,2.00479]
[1641639778750,3.05498747,3216.0,3215.2,2.00479]
[1641639778949,1.188888,3216.1,3215.2,2.00479]
[1641639778950,1.5,3215.7,3215.2,2.00479]
[1641639779151,0.640787,3215.7,3215.2,2.00479]
[1641639779549,0.905575,3215.7,3215.2,2.00479]
[1641639781051,2.19587845,3215.7,3215.2,2.00479]
[1641639781252,2.00479,3216.3,3215.2,2.00479]
[1641639781453,1.55489801,3216.1,3215.2,2.00479]
[1641639781655,2.00479,3216.3,3215.2,2.00479]
[1641639781858,2.180511,3216.2,3215.2,2.00479]
[1641639782059,2.00479,3216.3,3215.4,1.5]
[1641639782257,2.00479,3216.3,3215.2,2.00479]
[1641639782659,2.163684,3216.2,3215.9,2.00479]
[1641639782857,2.65994561,3216.2,3215.9,2.00479]
[1641639783059,0.49626161,3216.2,3215.9,2.00479]
[1641639783259,0.76104961,3216.2,3215.9,2.00479]
[1641639784962,0.264788,3216.2,3215.9,2.00479]
[1641639789469,1.02242452,3216.5,3215.9,2.00479]
[1641639789668,1.28721252,3216.5,3215.9,2.00479]
[1641639789868,1.92799952,3216.5,3215.9,2.00479]
[1641639790068,2.16418,3216.4,3215.9,2.00479]
[1641639790469,0.264788,3216.3,3215.9,2.00479]
[1641639790769,1.02242452,3216.6,3215.9,2.00479]
[1641639790770,1.02242452,3216.6,3216.1,14.79]
[1641639790971,1.02242452,3216.6,3216.1,15.6009]
[1641639791372,0.766059,3216.4,3216.1,15.6009]
[1641639791571,0.766059,3216.4,3216.1,14.1009]
[1641639792272,0.766059,3216.4,3216.1,0.8109]
[1641639792472,0.766059,3216.4,3216.2,14.79]
[1641639792973,3.47038848,3217.3,3216.2,14.79]
[1641639792974,0.766059,3216.9,3216.3,15.29479]
[1641639793573,0.766059,3216.9,3216.3,16.79479]
[1641639794379,0.766059,3216.9,3216.5,1.5]
[1641639794576,0.766059,3217.2,3216.3,2.00479]
[1641639794777,0.766059,3217.2,3216.7,2.00479]
[1641639794977,0.640787,3217.0,3216.7,2.00479]
[1641639795178,0.264788,3217.1,3216.7,2.00479]
[1641639795576,0.264788,3216.9,3216.7,2.00479]
[1641639795979,1.764788,3216.9,3216.7,2.00479]
[1641639796182,1.66470945,3216.8,3216.3,2.00479]
[1641639796378,1.5,3216.5,3216.3,2.00479]
[1641639796580,0.264788,3216.4,3216.3,2.00479]
[1641639796779,0.264788,3216.4,3215.9,2.00479]
[1641639798880,0.76591225,3216.6,3215.9,2.00479]
[1641639799078,0.76591225,3216.6,3216.0,13.29]
[1641639799279,0.76591225,3216.6,3215.9,15.97789]
[1641639800183,0.76591225,3216.6,3215.9,2.68789]
[1641639800783,0.76591225,3216.6,3216.4,2.00479]
[1641639800984,0.11,3216.8,3216.4,2.00479]
[1641639801385,0.374788,3216.8,3216.4,2.00479]
[1641639803891,0.374788,3216.8,3215.9,0.6831]
[1641639804086,0.374788,3216.8,3215.5,13.29]
[1641639804789,0.374788,3216.8,3216.1,2.00479]
[1641639804987,0.374788,3216.8,3216.1,2.74099]
[1641639805988,0.11,3216.8,3216.4,1.5]
[1641639806191,0.11,3216.8,3216.5,13.29]
[1641639806889,0.11,3216.8,3216.7,2.00479]
[1641639807090,0.11,3216.8,3216.7,15.29479]
[1641639808691,0.11,3216.8,3216.7,2.00479]
[1641639812497,1.196388,3216.8,3216.7,2.00479]
[1641639812694,2.75102735,3216.8,3216.1,2.00479]
[1641639812894,3.50479,3216.7,3216.1,2.00479]
[1641639813096,1.5,3216.2,3215.4,0.78992164]
[1641639813295,1.55535267,3215.5,3215.4,0.78992164]
[1641639813494,2.32355267,3215.5,3215.4,0.78992164]
[1641639813695,2.58834067,3215.5,3214.8,0.78992164]
[1641639814097,0.640787,3215.4,3214.8,0.78992164]
[1641639814295,0.264788,3215.3,3214.8,0.78992164]
[1641639815299,1.764788,3215.3,3214.6,2.00479]
[1641639815597,0.264788,3215.3,3214.6,2.00479]
[1641639817503,0.264788,3215.3,3214.7,13.29]
[1641639817900,2.00479,3215.4,3214.7,13.29]
[1641639820109,2.00479,3215.4,3214.6,15.29479]
[1641639820306,0.264788,3215.3,3214.6,2.00479]
[1641639820506,0.905575,3215.3,3214.6,2.00479]
[1641639820907,0.264788,3215.3,3214.6,2.00479]
[1641639821307,0.264788,3215.3,3214.6,15.29479]
[1641639821909,0.264788,3215.3,3214.6,2.00479]
[1641639827320,1.215288,3215.3,3214.6,2.00479]
[1641639827922,0.640787,3215.2,3214.6,2.00479]
[1641639828121,1.764788,3215.1,3214.4,0.78992164]
[1641639828722,0.264788,3215.1,3214.4,0.78992164]
[1641639829021,2.00479,3214.9,3214.4,0.78992164]
[1641639829223,2.00479,3214.9,3214.3,2.00479]
[1641639829224,0.264788,3214.8,3214.3,2.00479]
[1641639833726,2.00479,3214.9,3214.3,2.00479]
[1641639834127,2.269578,3214.9,3214.3,2.00479]
[1641639836229,2.00479,3214.9,3214.3,2.00479]
[1641639837529,2.269578,3214.9,3214.3,2.00479]
[1641639842132,3.004078,3214.9,3214.3,2.00479]
[1641639846537,4.504078,3214.9,3214.3,2.00479]
[1641639846738,4.967878,3214.9,3214.3,2.00479]
[1641639847737,3.467878,3214.9,3214.3,2.00479]
[1641639847939,1.55556074,3214.8,3214.3,2.00479]
[1641639848138,0.264788,3214.7,3214.3,2.00479]
[1641639849739,0.76605496,3215.0,3214.4,13.29]
[1641639849939,0.76605496,3215.0,3214.4,14.91844752]
[1641639850343,0.905575,3214.9,3214.4,1.62844752]
[1641639851044,0.905575,3214.9,3214.8,2.00479]
[1641639851243,0.905575,3214.9,3214.3,2.00479]
[1641639851443,1.742875,3214.9,3214.3,2.00479]
[1641639853044,3.747665,3214.9,3214.3,2.00479]
[1641639859054,3.482877,3214.9,3214.3,2.00479]
[1641639860757,0.8373,3214.9,3214.3,2.00479]
[1641639860958,0.76605496,3215.2,3214.4,13.29]
[1641639861159,0.76605496,3215.2,3214.3,2.00479]
[1641639861755,2.00479,3215.4,3214.3,2.00479]
[1641639862356,2.00479,3215.4,3214.3,15.29479]
[1641639863158,2.77084496,3215.4,3214.3,15.29479]
[1641639864061,0.76605496,3215.3,3214.3,15.29479]
[1641639864870,2.77084496,3215.4,3214.3,15.29479]
[1641639865970,0.76605496,3215.3,3214.3,2.00479]
[1641639866170,1.42835496,3215.3,3214.3,2.00479]
[1641639866971,0.76605496,3215.1,3214.4,13.29]
[1641639868272,0.76605496,3215.3,3214.4,13.29]
[1641639869273,0.76605496,3215.3,3214.7,13.29]
[1641639869473,0.76605496,3215.2,3214.7,13.29]
[1641639870075,1.03084296,3215.2,3214.3,2.74699]
[1641639870276,1.66504296,3215.2,3214.3,2.00479]
[1641639870876,0.898988,3215.2,3214.7,0.78992164]
[1641639871278,2.00479,3214.9,3214.7,0.78992164]
[1641639871482,2.269578,3214.9,3214.7,0.78992164]
[1641639871880,2.00479,3214.9,3214.7,0.78992164]
[1641639872077,3.02700047,3214.9,3214.3,2.00479]
[1641639872679,4.07498847,3214.9,3214.3,2.00479]
[1641639873381,0.76966595,3214.8,3214.4,1.12334114]
[1641639874481,0.76966595,3214.8,3214.4,0.78992164]
[1641639874681,0.76966595,3214.6,3214.3,2.79471164]
[1641639875581,1.41045295,3214.6,3214.3,2.79471164]
[1641639876484,0.76966595,3214.6,3214.3,2.79471164]
[1641639877083,0.76966595,3214.6,3214.3,2.00479]
[1641639877684,0.264788,3214.5,3214.3,2.00479]
[1641639877883,0.264788,3214.5,3214.3,2.79471164]
[1641639878885,1.03445395,3214.5,3214.3,2.00479]
[1641639880988,0.76966595,3214.4,3214.3,2.00479]
[1641639882596,0.264788,3214.5,3214.3,2.00479]
[1641639882788,1.51866777,3214.4,3214.3,2.00479]
[1641639883790,0.4964573,3214.4,3214.3,2.00479]
[1641639886092,1.51866777,3214.4,3214.3,2.00479]
[1641639886897,1.51866777,3214.4,3214.0,0.78992164]
[1641639887094,0.264788,3214.3,3213.5,1.30628416]
[1641639887293,2.00479,3214.0,3213.5,1.30628416]
[1641639888296,0.640787,3213.9,3213.5,0.3286803]
[1641639889097,1.820775,3213.9,3213.5,0.3286803]
[1641639889398,0.9152,3213.9,3213.5,0.3286803]
[1641639890198,1.179988,3213.9,3213.5,0.3286803]
[1641639890398,1.820775,3213.9,3213.5,0.3286803]
[1641639891298,1.820775,3213.9,3213.5,13.6186803]
[1641639891500,36.1874115,3213.6,3213.5,0.3286803]
[1641639891700,36.4521995,3213.6,3213.5,0.3286803]
[1641639893003,36.4521995,3213.6,3213.0,0.3286803]
[1641639893403,2.00479,3213.1,3213.0,0.3286803]
[1641639895406,2.72509,3213.1,3213.0,0.3286803]
[1641639898209,2.00479,3213.1,3213.0,0.3286803]
[1641639901412,2.00479,3213.1,3212.9,0.11]
[1641639902614,2.00479,3213.1,3213.0,0.3303964]
[1641639903513,2.00479,3213.1,3212.9,0.11]
[1641639904117,3.82594494,3213.1,3212.9,0.11]
[1641639904623,2.269578,3213.1,3212.9,0.11]
[1641639907426,2.00479,3213.1,3212.9,0.11]
[1641639908426,2.00479,3213.1,3212.9,13.4]
[1641639909630,1.55595284,3213.9,3212.9,13.4]
[1641639909827,0.76742314,3214.0,3213.2,13.29]
[1641639910028,0.76742314,3214.0,3213.2,15.41617342]
[1641639910830,1.78963361,3214.3,3213.2,15.41617342]
[1641639911127,0.76742314,3214.3,3213.2,15.41617342]
[1641639911526,2.00479,3213.7,3213.2,15.41617342]
[1641639912128,2.00479,3213.7,3213.2,16.20762423]
[1641639913127,0.76742314,3214.4,3213.6,13.29]
[1641639913328,0.76742314,3214.4,3214.0,13.29]
[1641639913528,0.76742314,3214.4,3214.3,18.79958]
[1641639913827,1.02221047,3214.7,3214.3,18.79958]
[1641639914027,1.02221047,3214.7,3214.6,13.29]
[1641639915033,1.53387737,3215.2,3214.6,21.29]
[1641639915229,1.53387737,3215.2,3215.1,13.29]
[1641639915430,2.00479,3215.9,3215.1,14.1666]
[1641639915431,1.02526815,3215.7,3215.1,14.1666]
[1641639915629,1.02526815,3215.7,3215.1,18.17618]
[1641639915830,1.02526815,3215.7,3215.1,19.67618]
[1641639916029,1.02526815,3215.7,3215.2,1.3058026]
[1641639916230,1.66605515,3215.7,3215.3,13.29]
[1641639916429,0.640787,3215.7,3215.3,13.29]
[1641639917231,0.640787,3215.7,3215.2,1.3058026]
[1641639917434,0.640787,3215.7,3215.2,14.5958026]
[1641639917633,2.00479,3215.9,3215.2,14.5958026]
[1641639918234,0.640787,3215.8,3215.2,14.5958026]
[1641639919035,1.5,3215.5,3215.1,4.00958]
[1641639919234,3.05519786,3215.5,3214.3,34.3524]
[1641639919435,1.5,3215.7,3214.1,1.30628416]
[1641639919635,0.640787,3215.8,3214.3,2.00479]
[1641639919636,2.00479,3215.1,3214.3,2.00479]
[1641639919834,2.62789,3215.1,3214.3,2.00479]
[1641639920235,2.62789,3215.1,3214.4,13.29]
[1641639920435,2.62789,3215.1,3214.6,13.29]
[1641639920836,2.00479,3215.1,3214.6,13.29]
[1641639922038,2.00479,3215.1,3214.4,1.5]
[1641639922039,2.00479,3215.1,3214.8,13.29]
[1641639922238,64.91144884,3215.7,3214.8,13.29]
[1641639922438,33.07604884,3215.7,3214.8,13.29]
[1641639922637,2.00479,3215.9,3214.8,13.29]
[1641639922839,2.00479,3215.9,3214.8,21.29]
[1641639923240,2.00479,3215.9,3215.2,13.29]
[1641639923638,2.00479,3215.9,3215.6,13.29]
[1641639925642,2.645577,3215.9,3215.6,13.29]
[1641639925843,2.645577,3215.9,3215.5,2.00479]
[1641639926943,2.645577,3215.9,3215.5,15.29479]
[1641639927144,2.00479,3215.9,3215.5,15.29479]
[1641639928043,2.645577,3215.9,3215.5,15.29479]
[1641639928242,2.00479,3215.9,3215.5,15.29479]
[1641639929643,1.02481052,3216.3,3215.5,15.29479]
[1641639929843,1.02481052,3216.3,3215.5,16.23259]
[1641639930043,0.905575,3216.2,3215.5,16.23259]
[1641639930645,0.264788,3216.2,3215.5,16.23259]
[1641639931548,0.264788,3216.2,3215.5,18.23738]
[1641639932148,3.05518819,3215.6,3214.9,5.0]
[1641639932347,0.264788,3215.5,3214.9,5.0]
[1641639932948,1.55526075,3215.4,3214.9,5.0]
[1641639933347,1.55493669,3216.0,3214.9,19.79]
[1641639933551,2.00479,3215.6,3214.9,22.45579]
[1641639933748,2.00479,3215.6,3214.9,24.0103786]
[1641639934347,2.00479,3215.6,3215.4,1.5]
[1641639934948,2.00479,3215.6,3214.9,30.45579]
[1641639935148,2.00479,3215.6,3215.0,1.22277277]
[1641639935551,2.00479,3216.0,3215.0,1.14503277]
[1641639937149,2.00479,3216.0,3215.0,14.43503277]
[1641639937348,2.00479,3216.0,3215.1,1.5]
[1641639937549,2.00479,3216.0,3215.3,1.5]
[1641639938352,0.640787,3215.9,3215.3,1.5]
[1641639938549,0.640787,3215.9,3215.0,2.64503277]
[1641639938951,0.640787,3215.9,3215.0,1.14503277]
[1641639939553,2.00479,3215.3,3215.0,1.14503277]
[1641639940854,1.5,3215.2,3214.9,5.0]
[1641639941056,3.05551961,3215.0,3214.5,0.78938352]
[1641639941254,1.5,3214.6,3213.8,1.5812834]
[1641639941457,3.05590442,3214.1,3213.8,1.5812834]
[1641639941653,7.06548442,3214.1,3214.0,1e-08]
[1641639941856,18.79958,3214.1,3214.0,1e-08]
[1641639942052,22.79958,3214.1,3214.0,1e-08]
[1641639942255,24.35592514,3214.1,3213.3,2.58893631]
[1641639942456,1.5,3213.5,3213.3,1e-08]
[1641639942653,15.616,3213.5,3213.3,1e-08]
[1641639943051,0.640787,3213.4,3213.3,1e-08]
[1641639943653,4.650367,3213.4,3213.0,1.57793265]
[1641639943855,4.650367,3213.4,3213.1,0.264788]
[1641639944053,4.650367,3213.4,3213.1,0.850088]
[1641639944452,4.650367,3213.4,3213.1,0.5853]
[1641639945254,4.650367,3213.4,3212.7,1.11652364]
[1641639945456,4.650367,3213.4,3212.3,0.07779]
[1641639945656,2.00479,3213.0,3212.1,2.00479]
[1641639946755,3.5826,3213.0,3211.9,0.11]
[1641639947158,8.484637,3213.0,3211.9,0.11]
[1641639947358,6.984637,3213.0,3211.9,0.11]
[1641639947959,7.062447,3213.0,3211.9,0.11]
[1641639948159,2.0826,3213.0,3211.9,0.11]
[1641639948363,2.00479,3213.0,3211.9,0.11]
[1641639948560,2.0826,3213.0,3211.9,0.11]
[1641639948962,2.7826,3213.0,3211.9,0.97774924]
[1641639949263,4.33907595,3213.0,3211.9,0.97774924]
[1641639949661,2.7826,3213.0,3211.9,0.97774924]
[1641639950464,2.0826,3213.0,3211.9,0.97774924]
[1641639951663,3.5826,3213.0,3211.9,0.97774924]
[1641639952265,2.0826,3213.0,3211.9,0.97774924]
[1641639952466,2.0826,3213.0,3211.9,1.57444924]
[1641639955371,2.0826,3213.0,3211.9,0.97774924]
[1641639959176,2.9103,3213.0,3211.9,0.97774924]
[1641639959776,2.00479,3212.3,3211.9,0.97774924]
[1641639959975,2.77929,3212.3,3212.0,0.264788]
[1641639961883,2.77929,3212.3,3211.9,0.97774924]
[1641639962080,3.420077,3212.3,3211.9,0.97774924]
[1641639962281,3.420077,3212.3,3211.9,1.24253724]
[1641639963079,2.77929,3212.3,3211.9,1.24253724]
[1641639964683,2.77929,3212.3,3211.9,0.97774924]
[1641639965684,2.00479,3212.0,3211.9,1.24253724]
[1641639968489,2.00479,3212.0,3211.9,0.11]
[1641639972592,36.55323999,3213.8,3212.0,8.0]
[1641639972791,1.02481052,3214.0,3212.4,8.0]
[1641639972992,0.6492,3213.8,3212.5,0.07779]
[1641639973192,1.02481052,3214.0,3212.1,34.71749]
[1641639973492,1.5,3213.5,3212.1,34.71749]
[1641639973692,80.55375915,3213.7,3212.2,1.4299041]
[1641639973893,2.00479,3213.0,3212.3,2.00479]
[1641639974093,2.00479,3213.0,3212.3,2.269578]
[1641639977896,2.00479,3213.4,3212.3,2.269578]
[1641639981302,1.55633545,3213.2,3212.3,2.269578]
[1641639981500,1.5,3213.1,3212.3,2.269578]
[1641639981701,1.5,3212.8,3212.2,1.4299041]
[1641639981901,2.00479,3212.5,3212.2,1.4299041]
[1641639982104,2.70949,3212.5,3212.2,1.4299041]
[1641639983705,0.640787,3213.0,3212.2,1.4299041]
[1641639983905,0.640787,3213.0,3212.5,2.00479]
[1641639984104,0.640787,3213.0,3212.5,2.269578]
[1641639984306,0.640787,3213.0,3212.5,2.00479]
[1641639984505,0.640787,3213.0,3212.2,1.4299041]
[1641639985907,2.00479,3212.8,3212.2,1.4299041]
[1641639986607,2.00479,3212.8,3212.3,0.264788]
[1641639987109,2.00479,3212.8,3212.2,1.4299041]
[1641639988208,2.00479,3212.8,3212.2,1.6946921]
[1641639989109,2.00479,3213.4,3212.4,1.5]
[1641639989310,2.00479,3213.4,3212.4,0.6032]
[1641639989911,2.00479,3213.4,3212.6,2.00479]
[1641639990110,0.640787,3213.3,3212.7,0.89028684]
[1641639990309,0.640787,3213.3,3212.7,1.15507484]
[1641639990509,2.00479,3213.4,3212.7,1.15507484]
[1641639992311,2.51770721,3215.4,3213.2,1.5]
[1641639992514,0.76335915,3214.0,3212.9,8.0]
[1641639992812,0.76335915,3214.0,3213.3,1.5]
[1641639993013,0.76335915,3214.0,3213.4,0.264788]
[1641639993211,0.76335915,3214.0,3213.4,0.855788]
[1641639993411,0.640787,3213.9,3213.5,0.82041033]
[1641639994010,2.00479,3213.7,3212.9,0.78790271]
[1641639994413,2.00479,3213.7,3213.0,0.82305673]
[1641639994614,2.00479,3213.7,3213.0,1.08784473]
[1641639996114,2.00479,3213.3,3213.0,1.08784473]
[1641639997517,13.29,3214.9,3213.0,1.08784473]
[1641639997718,0.6492,3214.6,3213.0,1.08784473]
[1641639997917,34.4854,3215.1,3213.0,1.08784473]
[1641639998119,2.00479,3214.3,3213.5,2.00479]
[1641639998317,0.640787,3214.2,3213.5,2.00479]
[1641639998518,0.640787,3214.2,3213.6,0.264788]
[1641639999821,0.640787,3214.2,3213.4,1.35002581]
[1641640000022,2.00479,3213.6,3212.6,2.08257]
[1641640000223,2.00479,3213.6,3212.6,2.00479]
[1641640001021,2.00479,3213.6,3212.7,0.87696657]
[1641640002124,2.00479,3213.6,3213.1,2.00479]
[1641640002324,0.640787,3213.5,3213.1,2.00479]
[1641640002624,1.237187,3213.5,3213.1,2.00479]
[1641640005036,1.55628943,3213.2,3212.6,2.00479]
[1641640006039,2.00479,3213.1,3212.6,2.00479]
[1641640007237,2.00479,3213.1,3212.6,2.269578]
[1641640009140,0.264788,3213.0,3210.1,1.15245629]
[1641640009338,1.5,3211.1,3210.1,1.15245629]
[1641640009539,3.350475,3211.1,3210.0,4.32545629]
[1641640009740,9.017073,3211.1,3209.2,0.031]
[1641640009938,1.5,3210.1,3209.2,0.031]
[1641640010139,5.50958,3209.3,3209.2,0.031]
[1641640010340,6.630668,3209.3,3209.2,0.031]
[1641640010543,5.130668,3209.3,3209.2,0.031]
[1641640010743,4.86588,3209.3,3209.2,0.029]
[1641640011039,9.851468,3209.3,3209.2,1.529]
[1641640011240,4.86588,3209.3,3209.2,0.293788]
[1641640011540,4.86588,3209.3,3209.2,1.793788]
[1641640011741,4.86588,3209.3,3209.2,0.293788]
[1641640012546,0.9449,3211.1,3209.2,1.793788]
[1641640012744,0.76253687,3209.4,3209.2,0.992888]
[1641640012945,1.90634217,3210.3,3209.3,1.5]
[1641640013146,0.66286666,3210.0,3209.7,1.5]
[1641640013347,0.66286666,3210.0,3209.8,0.264788]
[1641640013746,0.66286666,3210.0,3209.9,2.85859749]
[1641640014846,0.66286666,3210.0,3209.9,1.35859749]
[1641640015145,2.00479,3210.4,3209.9,1.35859749]
[1641640015346,2.00479,3210.4,3210.0,0.264788]
[1641640015645,2.00479,3210.4,3210.0,1.764788]
[1641640015847,0.76013179,3210.7,3210.3,1.5]
[1641640016048,0.76013179,3210.7,3210.6,1.5]
[1641640016247,0.76013179,3210.7,3210.6,2.2478]
[1641640016448,0.76013179,3210.7,3210.6,0.7478]
[1641640017046,1.02491979,3210.7,3210.6,0.7478]
[1641640017247,1.02491979,3210.7,3210.4,2.66718365]
[1641640017445,1.02491979,3210.7,3210.6,1.5]
[1641640017646,2.00479,3211.0,3210.6,1.5]
[1641640018247,2.00479,3210.7,3210.5,1.764788]
[1641640018448,2.00479,3211.0,3210.5,1.764788]
[1641640018650,0.76013179,3211.2,3210.9,1.5]
[1641640018848,0.76013179,3211.2,3210.5,0.4511184]
[1641640019448,1.5,3211.0,3210.5,0.4511184]
[1641640019651,0.76013179,3211.2,3210.4,1.16718365]
[1641640020050,0.76013179,3211.5,3210.4,1.16718365]
[1641640020250,0.76013179,3211.5,3210.9,2.00479]
[1641640020449,1.40091879,3211.5,3210.9,2.00479]
[1641640020850,1.40091879,3211.5,3211.0,0.8079065]
[1641640021051,1.66570679,3211.5,3211.0,0.8079065]
[1641640021254,1.5,3211.2,3211.0,0.8079065]
[1641640021452,2.52491979,3211.5,3211.0,0.8079065]
[1641640022053,1.764788,3211.5,3211.0,1.7371065]
[1641640022453,0.264788,3211.5,3211.0,1.7371065]
[1641640022654,0.76013179,3211.6,3211.0,1.7371065]
[1641640023657,0.76013179,3211.7,3211.0,1.7371065]
[1641640023859,0.66259463,3212.3,3211.0,3.10303382]
[1641640024057,0.36066836,3212.4,3211.5,1.36574672]
[1641640024258,0.36066836,3212.4,3212.3,4.00958]
[1641640024458,2.54178956,3212.9,3212.3,4.88608]
[1641640024859,2.54178956,3212.9,3212.4,1.00881732]
[1641640025060,0.03,3213.1,3212.4,1.00881732]
[1641640025661,0.294788,3213.1,3212.4,1.00881732]
[1641640025863,2.140787,3213.0,3212.4,1.00881732]
[1641640026061,2.140787,3213.0,3212.4,0.93100732]
[1641640026262,0.264788,3212.9,3212.4,0.93100732]
[1641640027964,1.5,3212.6,3212.4,0.93100732]
[1641640028166,0.264788,3212.5,3212.4,0.93100732]
[1641640028564,0.264788,3212.5,3211.7,2.00479]
[1641640028764,1.5,3211.8,3211.7,2.00479]
[1641640029066,1.5,3212.5,3211.7,2.00479]
[1641640029465,1.5,3212.0,3211.7,2.00479]
[1641640029663,0.264788,3212.4,3211.7,2.00479]
[1641640029864,3.01189324,3212.7,3211.7,2.00479]
[1641640030063,3.01189324,3212.7,3211.7,3.98143987]
[1641640030266,3.01189324,3212.7,3212.1,2.00479]
[1641640030666,1.00710324,3212.7,3212.1,2.00479]
[1641640031667,1.5,3213.0,3212.1,2.00479]
[1641640032264,1.5,3213.0,3212.5,2.00479]
[1641640032466,0.264788,3213.0,3212.6,0.93636652]
[1641640034466,0.264788,3213.0,3212.5,2.00479]
[1641640034667,0.905575,3213.0,3212.5,0.82178719]
[1641640035068,0.03,3213.1,3212.5,0.82178719]
[1641640035469,0.03,3213.1,3212.6,0.07781]
[1641640035967,0.0001,3213.1,3212.8,2.93796834]
[1641640036166,0.0001,3213.1,3212.9,1.16889226]
[1641640037068,1.5,3213.0,3212.9,1.16889226]
[1641640037268,2.405575,3213.0,3212.3,0.07779]
[1641640037467,1.5,3212.4,3211.9,0.07781]
[1641640037769,0.264788,3212.3,3211.0,0.6492]
[1641640037970,0.264788,3212.3,3211.1,0.07784]
[1641640038170,0.264788,3212.3,3211.8,2.00479]
[1641640038368,2.3029,3212.4,3211.8,2.00479]
[1641640038568,1.5,3212.3,3211.8,2.00479]
[1641640038969,0.8029,3212.4,3211.8,2.00479]
[1641640039169,2.00479,3212.5,3211.8,2.00479]
[1641640039568,1.55629982,3213.1,3211.8,2.00479]
[1641640039767,1.55629982,3213.1,3211.8,2.65399]
[1641640039967,1.5,3212.8,3211.8,2.00479]
[1641640040167,0.0001,3213.1,3211.8,2.00479]
[1641640040368,0.0001,3213.1,3212.4,2.00479]
[1641640040570,0.640787,3213.0,3212.4,2.93259]
[1641640040772,0.905575,3213.0,3212.4,2.93259]
[1641640041372,0.905575,3213.0,3212.5,1.34085461]
[1641640042169,0.640787,3213.0,3212.5,1.34085461]
[1641640048684,1.5,3212.7,3212.5,1.34085461]
[1641640049284,0.264788,3212.6,3212.5,1.34085461]
[1641640050288,2.269578,3212.6,3212.5,1.34085461]
[1641640050487,2.269578,3212.6,3211.8,2.0826]
[1641640050687,2.269578,3212.6,3212.0,0.84508147]
[1641640051292,3.769578,3212.6,3212.0,0.84508147]
[1641640051489,2.00479,3212.6,3212.0,0.84508147]
[1641640051992,2.00479,3212.6,3212.1,0.07781]
[1641640052391,2.269578,3212.6,3212.1,0.07781]
[1641640052591,2.269578,3212.6,3212.0,0.84508147]
[1641640052990,0.640787,3213.0,3212.0,0.84508147]
[1641640053190,0.640787,3213.0,3212.1,0.07781]
[1641640054393,0.640787,3213.0,3212.4,2.00479]
[1641640054594,0.905575,3213.0,3212.5,1.16364456]
[1641640054792,1.5,3212.6,3211.5,0.07781]
[1641640054991,1.5,3212.6,3211.3,0.07782]
[1641640055995,2.19704979,3213.0,3211.6,1.44673999]
[1641640056195,2.140787,3213.0,3211.7,0.72701]
[1641640056394,4.145577,3213.0,3212.2,2.00479]
[1641640056595,0.264788,3212.9,3212.2,2.00479]
[1641640057593,2.645577,3213.0,3212.2,3.44719204]
[1641640057793,2.645577,3213.0,3212.3,0.07781]
[1641640057995,2.645577,3213.0,3212.3,0.71551]
[1641640059595,2.910365,3213.0,3212.3,0.71551]
[1641640061504,2.910365,3213.0,3212.3,0.6377]